[Event "16th HSG Open-A 2022"]
[Site "Hilversum"]
[Date "2022.06.17"]
[Round "2.3"]
[White "Boekelman, Jan"]
[Black "Roebers, Eline"]
[Result "1-0"]
[ECO "E75"]
[WhiteElo "2116"]
[BlackElo "2369"]
[Annotator "TA"]
[PlyCount "47"]
[EventDate "2022.06.17"]
[EventCountry "NED"]
[SourceTitle "playchess.com"]
[Source "ChessBase"]
[SourceQuality "1"]
[TimeControl "6600+10"]

{[%evp 13,47,28,36,14,16,17,8,13,18,40,91,93,92,93,93,73,72,25,152,156,238,228,293,293,298,301,374,375,504,389,754,738,861,808,950,851]} 1. d4 {[%emt 0:02:24]} Nf6 {[%emt 0:00:05]} 2. c4 {[%emt 0:00:14]} g6 {[%emt 0:00:02]} 3. Nc3 {[%emt 0:00:10]} Bg7 {[%emt 0:00:02]} 4. e4 {[%emt 0:00:09]} d6 {[%emt 0:00:03]} 5. Be2 {[%emt 0:00:08]} O-O {[%emt 0:00:08]} 6. Bg5 {[%emt 0:00:06]} c5 {[%emt 0:00:55]} 7. d5 {[%emt 0:00:07]} e6 {[%emt 0:00:34]} 8. Qc1 {[%emt 0:00:08] E75: King's Indian: Averbakh Variation: 6...c5 7 d5 e6.} exd5 {[%emt 0:02:11]} 9. exd5 {[%emt 0:00:11]} Re8 {[%emt 0:08:48]} 10. Nf3 {[%emt 0:00:25] [#] The position is equal.} b5 $146 {[%emt 0:19:30]} ({Predecessor:} 10... Qb6 11. O-O Ne4 12. Nxe4 Rxe4 13. Qc2 Re8 14. Rae1 Bg4 15. h3 Bxf3 16. Bxf3 Rxe1 17. Rxe1 {½-½ (33) Farago,I (2354)-Szamoskozi,G (2257) Hungary 2019}) 11. cxb5 {[%emt 0:01:46]} a6 {[%emt 0:01:55]} (11... Nbd7 $14) 12. O-O $16 {[%emt 0:00:53]} Nbd7 {[%emt 0:01:52]} 13. a4 {[%emt 0:01:18]} Qa5 {[%emt 0:05:04]} 14. Bd2 {[%emt 0:03:38]} Qc7 {[%emt 0:00:59]} 15. bxa6 {[%emt 0:18:51]} (15. Bh6 $16) 15... Nb6 {[%emt 0:05:05] [#]} (15... Bxa6 $11 {keeps the balance.} 16. Bxa6 Rxa6) 16. Bb5 $1 {[%emt 0:05:28]} Bd7 {[%emt 0:04:25]} (16... Rd8 $16) 17. Rd1 {[%emt 0:05:29]} Ne4 {[%emt 0:15:43]} 18. Nxe4 {[%emt 0:07:37]} Rxe4 {[%emt 0:00:47]} 19. Ba5 {[%emt 0:00:25]} Bxb5 {[%emt 0:06:17]} 20. axb5 {[%emt 0:00:04]} c4 {[%emt 0:02:06]} 21. Qc2 {[%emt 0:05:37]} Rf4 {[%emt 0:02:19] [#]} (21... Ree8 22. Nd4 Bxd4) 22. Qe2 $18 {[%emt 0:14:55] White is clearly winning.} Qc5 {[%emt 0:01:19]} 23. Qe3 {[%emt 0:00:28]} Qxe3 {[%emt 0:00:04]} 24. fxe3 {[%emt 0:00:05] Weighted Error Value: White=0.15 (very precise) /Black=0.44} 1-0

[Event "16th HSG Open-A 2022"]
[Site "Hilversum"]
[Date "2022.06.17"]
[Round "2.4"]
[White "Harff, Marcel"]
[Black "Ercan, Selman"]
[Result "1-0"]
[ECO "A20"]
[WhiteElo "2336"]
[BlackElo "2094"]
[Annotator "TA"]
[PlyCount "63"]
[EventDate "2022.06.17"]
[EventCountry "NED"]
[SourceTitle "playchess.com"]
[Source "ChessBase"]
[SourceQuality "1"]
[TimeControl "6600+10"]

{[%evp 9,63,12,0,3,16,-17,-16,-42,-19,-66,-54,-52,-10,-11,-13,-56,-66,-64,-49,-49,-46,-59,-36,-38,0,0,0,0,20,13,64,45,37,14,68,58,60,58,182,187,214,213,277,184,262,267,251,261,356,356,356,345,350,347,334,321]} 1. c4 {[%emt 0:00:05]} c6 {[%emt 0:00:16]} 2. g3 {[%emt 0:00:19]} d5 {[%emt 0:00:34]} 3. Bg2 {[%emt 0:00:09]} e5 {[%emt 0:00:59][%cal Be7e5,Be5e4][%mdl 32]} 4. cxd5 {[%emt 0:00:19]} cxd5 {[%emt 0:00:08]} 5. d4 {[%emt 0:00:13]} e4 {[%emt 0:00:31]} 6. Nc3 {[%emt 0:00:15] A20: English Opening: 1...e5.} Nc6 {[%emt 0:01:29]} 7. e3 {[%emt 0:00:53]} Nf6 {[%emt 0:05:03]} 8. Nge2 {[%emt 0:00:36] The position is equal.} Bd6 {[%emt 0:05:37]} 9. f3 {[%emt 0:00:40]} (9. O-O $11) 9... exf3 $15 {[%emt 0:05:00]} 10. Bxf3 {[%emt 0:00:02]} O-O {[%emt 0:00:54]} 11. O-O {[%emt 0:00:34]} Bh3 {[%emt 0:06:27]} 12. Bg2 {[%emt 0:00:21]} Bxg2 {[%emt 0:02:15]} 13. Kxg2 {[%emt 0:00:02] [#]} Qe7 $146 {[%emt 0:02:50]} ({Predecessor:} 13... a6 14. Bd2 b5 15. Rc1 Rc8 16. Nf4 Bxf4 17. Rxf4 Ne7 18. Qe2 Ng6 19. Rf3 Qd7 {0-1 (29) Krist,M (1985)-Kolenak,M (1916) Slovakia 2012}) 14. Qd3 {[%emt 0:00:44]} Rad8 {[%emt 0:01:04]} 15. Bd2 {[%emt 0:00:13]} Bb8 {[%emt 0:01:55]} 16. Rf2 {[%emt 0:06:11]} Ne4 {[%emt 0:06:38]} 17. Nxe4 {[%emt 0:00:36]} dxe4 {[%emt 0:00:30]} 18. Qb3 Rd7 {[%emt 0:05:46]} 19. Raf1 {[%emt 0:00:57]} Qg5 {[%emt 0:02:39]} (19... Kh8 $11) 20. Rf5 {[%emt 0:06:48]} Qg6 {[%emt 0:03:49]} 21. Rb5 {[%emt 0:00:39]} Nd8 {[%emt 0:06:21]} (21... b6 $1 $11) 22. Rd5 {[%emt 0:04:01]} Rxd5 {[%emt 0:09:07]} 23. Qxd5 {[%emt 0:00:15]} Ne6 {[%emt 0:01:03] [#] This move loses the game for Black.} (23... Qb6 $14) 24. Bb4 $1 $36 {[%emt 0:01:13][%mdl 2048] White is in control.} Rd8 {[%emt 0:07:26]} (24... Qg4 $2 25. Bxf8 (25. Nc3 Rd8 $16) 25... Qxe2+ 26. Rf2 $18) 25. Qxb7 {[%emt 0:01:13] aiming for d5.} Qh5 {[%emt 0:03:23] Inhibits d5.} 26. Ng1 {[%emt 0:00:10] Active counter play!} f5 {[%emt 0:04:15]} (26... f6 {was necessary.} 27. Qxe4 Re8) 27. d5 {[%emt 0:02:11]} Nf8 {[%emt 0:01:11]} 28. Bc3 {[%emt 0:01:28][%csl Gc3][%cal Rb7g7] [#] Really sharp!} ({Much less strong is} 28. Be7 $6 Rd7 29. Qb4 (29. Qxb8 Rxe7 30. b3 h6 $16) 29... a5 30. Qxb8 Rxe7 $16) 28... Nd7 {[%emt 0:02:19]} 29. Ba5 {[%emt 0:00:41]} ({Less strong is} 29. d6 Qf7 30. Nh3 h6 $16) 29... Nb6 {[%emt 0:00:11]} 30. Bxb6 {[%emt 0:00:09]} axb6 {[%emt 0:00:08]} 31. Qxb6 {[%emt 0:00:05]} Re8 {[%emt 0:04:19]} 32. Qc6 {[%emt 0:02:27] Weighted Error Value: White=0.11 (very precise) /Black=0.25 (precise)} 1-0

[Event "16th HSG Open-A 2022"]
[Site "Hilversum"]
[Date "2022.06.17"]
[Round "2.5"]
[White "Labruyere, Roger"]
[Black "Elgersma, Onno"]
[Result "0-1"]
[ECO "B12"]
[WhiteElo "2199"]
[BlackElo "2303"]
[Annotator "TA"]
[PlyCount "82"]
[EventDate "2022.06.17"]
[EventCountry "NED"]
[SourceTitle "playchess.com"]
[Source "ChessBase"]
[SourceQuality "1"]
[TimeControl "6600+10"]

{[%evp 10,82,13,13,16,16,19,-9,0,0,-2,-12,0,-9,-8,-13,-15,-24,-12,-24,-14,-8,0,-9,-7,-45,0,-160,-153,-158,-154,-189,-137,-181,-193,-221,-164,-205,-180,-302,-291,-387,-321,-311,-304,-399,-406,-416,-409,-416,-254,-293,-289,-1601,-1618,-1919,-1770,-1385,-1287,-5625,-5772,-29968,-29969,-29979,-29976,-29974,-29973,-29975,-29971,-29976,-29971,-29988,-29989,-29989,-29990]} 1. e4 {[%emt 0:09:53]} c6 {[%emt 0:00:10]} 2. d4 {[%emt 0:00:06]} d5 {[%emt 0:00:04]} 3. e5 {[%emt 0:00:03]} Bf5 {[%emt 0:00:13]} 4. Nd2 {[%emt 0:00:06]} e6 {[%emt 0:02:38]} 5. Nb3 {[%emt 0:03:37]} Nd7 {[%emt 0:00:25]} 6. Nf3 {[%emt 0:00:12]} a6 {[%emt 0:02:40] B12: Caro-Kann: Advance Variation.} 7. Be3 {[%emt 0:00:50]} Ne7 {[%emt 0:02:35] [#]} 8. Bd3 $146 {[%emt 0:02:30]} ({Predecessor:} 8. Be2 Bg4 9. O-O Nf5 10. h3 Bxf3 11. Bxf3 Be7 12. Bg4 g6 13. a4 a5 14. Bxf5 exf5 {1-0 (72) Lagunow,R (2378)-Villegas,P (2367) Chess.com INT 2021}) 8... Bxd3 {[%emt 0:00:48] The position is equal.} 9. Qxd3 {[%emt 0:00:06]} Nf5 {[%emt 0:00:20]} 10. Bg5 {[%emt 0:02:49]} Be7 {[%emt 0:00:51]} 11. h4 {[%emt 0:00:58]} h6 {[%emt 0:02:08]} 12. Bxe7 {[%emt 0:02:36]} Nxe7 {[%emt 0:00:07]} 13. h5 {[%emt 0:00:17]} Rc8 {[%emt 0:02:51][%cal Ba8c8,Bc8c5,Bc5c4][%mdl 32]} 14. c3 {[%emt 0:06:37]} c5 {[%emt 0:05:25]} 15. dxc5 {[%emt 0:06:38]} Nxc5 {[%emt 0:02:13]} 16. Nxc5 {[%emt 0:00:10]} Rxc5 {[%emt 0:00:05]} 17. Nd4 {[%emt 0:01:11]} Qb6 {[%emt 0:00:36]} 18. b4 $2 {[%emt 0:07:28] Black continues to play with concentration.} (18. O-O-O $11) 18... Rc4 $17 {[%emt 0:00:36]} 19. O-O {[%emt 0:03:41]} O-O {[%emt 0:00:13]} 20. Rac1 {[%emt 0:13:35]} Rfc8 {[%emt 0:00:14]} (20... Nc6 $19 21. Qe3 Rc8) 21. Nb3 {[%emt 0:16:33]} Qc7 {[%emt 0:05:43][%csl LRc3,LRe5]} 22. Rfe1 {[%emt 0:01:31]} b6 {[%emt 0:01:02] Inhibits Na5.} 23. Re3 {[%emt 0:06:55]} Nf5 {[%emt 0:00:49]} 24. Re2 {[%emt 0:04:42]} (24. Ree1 {was forced.}) 24... d4 $19 {[%emt 0:10:37][%cal Rc4c3]} ({But not} 24... Rxc3 $2 25. Rxc3 Qxc3 26. Qxc3 Rxc3 27. Kf1 $19) 25. g4 {[%emt 0:04:32]} Ne7 {[%emt 0:00:14][%cal Bf5e7,Be7d5,Bd5b4][%mdl 32]} 26. Nxd4 {[%emt 0:01:30]} Nd5 {[%emt 0:00:04] Strongly threatening ...Nf4.} ({And not} 26... Rxc3 27. Rxc3 Qxc3 28. Qxc3 Rxc3 29. Rc2 $15) 27. Ree1 {[%emt 0:05:07] [#]} Nxb4 $1 {[%emt 0:01:31][%mdl 512]} 28. Qd2 {[%emt 0:06:13]} (28. Qg3 Nxa2) 28... Nd5 {[%emt 0:02:16]} 29. g5 {[%emt 0:00:51]} Rxc3 {[%emt 0:00:54]} 30. Ne2 {[%emt 0:00:39]} Rc2 {[%emt 0:00:26]} 31. Qd4 {[%emt 0:01:20] [#]} (31. Rxc2 Qxc2 32. Qxc2 Rxc2 33. g6) 31... Rxe2 $1 {[%emt 1:06:32][%mdl 512]} 32. Rxc7 {[%emt 0:00:02]} (32. Rcd1 Rxe1+) 32... Rxe1+ {[%emt 0:00:00]} 33. Kg2 {[%emt 0:00:01]} Rxc7 {[%emt 0:00:00]} 34. gxh6 {[%emt 0:00:03]} gxh6 {[%emt 0:00:00]} 35. Qd2 {[%emt 0:00:29]} Rxe5 {[%emt 0:00:00] Black mates.} 36. Qxh6 {[%emt 0:00:05]} Rf5 {[%emt 0:00:00]} 37. Qd2 {[%emt 0:00:42]} Rxh5 {[%emt 0:00:00]} 38. Kf3 {[%emt 0:01:27]} Rf5+ {[%emt 0:00:00]} 39. Kg3 {[%emt 0:00:23]} f6 {[%emt 0:00:00]} 40. Qe2 {[%emt 0:00:11]} Rg7+ {[%emt 0:00:00]} 41. Kh2 {[%emt 0:00:04]} Nf4 {[%emt 0:00:00] Weighted Error Value: White=0.85/Black=0.16 (very precise)} 0-1

[Event "16th HSG Open-A 2022"]
[Site "Hilversum"]
[Date "2022.06.17"]
[Round "2.6"]
[White "Wiersma, Eelke"]
[Black "Bosboom, Ardin"]
[Result "1-0"]
[ECO "B33"]
[WhiteElo "2299"]
[BlackElo "2093"]
[Annotator "TA"]
[PlyCount "87"]
[EventDate "2022.06.17"]
[EventCountry "NED"]
[SourceTitle "playchess.com"]
[Source "ChessBase"]
[SourceQuality "1"]
[TimeControl "6600+10"]

{[%evp 23,87,38,43,12,0,16,12,35,37,23,44,47,252,254,250,236,230,0,9,-44,-51,-45,-37,-44,95,75,85,82,116,14,41,0,402,366,384,347,452,213,206,197,204,191,191,177,197,191,395,395,411,396,2322,2252,1458,550,1510,770,748,719,29986,29987,29987,29988,29988,5293,29989,29990]} 1. e4 {[%emt 0:00:08]} c5 {[%emt 0:00:07]} 2. Nf3 {[%emt 0:00:10]} Nc6 {[%emt 0:00:06]} 3. d4 {[%emt 0:00:10]} cxd4 {[%emt 0:00:07]} 4. Nxd4 {[%emt 0:00:08]} Nf6 {[%emt 0:00:05]} 5. Nc3 {[%emt 0:00:11]} e5 {[%emt 0:00:07]} 6. Ndb5 {[%emt 0:00:08]} d6 {[%emt 0:00:05]} 7. Bg5 {[%emt 0:00:11]} a6 {[%emt 0:00:09]} 8. Na3 {[%emt 0:00:09]} b5 {[%emt 0:00:06]} 9. Bxf6 {[%emt 0:00:09]} gxf6 {[%emt 0:00:06][%cal Bg7f6,Bf6f5][%mdl 32]} 10. Nd5 {[%emt 0:00:08]} f5 {[%emt 0:00:15]} 11. Bd3 {[%emt 0:00:14]} Be6 {[%emt 0:00:55]} 12. c3 {[%emt 0:00:13]} Bg7 {[%emt 0:01:05]} 13. Nxb5 {[%emt 0:00:17] B33: Sicilian: Pelikan and Sveshnikov Variations.} axb5 {[%emt 0:01:24]} 14. Bxb5 {[%emt 0:00:09]} Bd7 {[%emt 0:02:53]} 15. exf5 {[%emt 0:00:21][%cal Be4f5,Bf5f6][%mdl 32] The position is equal.} O-O {[%emt 0:07:26]} 16. O-O {[%emt 0:00:28][%mdl 1024] White has compensation.} e4 {[%emt 0:06:01]} 17. a4 {[%emt 0:01:00]} Ne5 $2 {[%emt 0:01:48] [#] Inhibits Qg4.} (17... Kh8 $14) 18. f6 $1 $18 {[%emt 0:07:51]} Bg4 (18... Bxf6 $2 19. Nxf6+ (19. Bxd7 Nxd7 20. Re1 Re8 $11) 19... Qxf6 20. Bxd7 $18) 19. f3 {[%emt 0:10:35]} ({Don't do} 19. fxg7 $6 Bxd1 20. gxf8=Q+ (20. gxf8=R+ Kxf8 21. Rfxd1 Qh4 $16) 20... Kxf8 21. Rfxd1 (21. Raxd1 Qg5 $16) 21... Qg5 $16) 19... exf3 {[%emt 0:16:40] [#]} 20. gxf3 $146 {[%emt 0:00:49]} (20. fxg7 $18 f2+ 21. Rxf2 Bxd1 22. gxf8=Q+ (22. gxf8=R+ Qxf8 23. Rxd1 Kh8 $18) 22... Qxf8 23. Rxd1) ({Predecessor:} 20. fxg7 f2+ 21. Rxf2 Bxd1 22. gxf8=Q+ Qxf8 23. Nf6+ Kh8 24. Rxd1 Qe7 25. Rd4 Ng6 26. Re4 {½-½ (40) Belmar Juaranz,C (2260)-Neuburger,I (2050) GER email 2016}) 20... Bh3 $132 {[%emt 0:01:45][%mdl 2048] Black is not holding back} 21. f4 {[%emt 0:09:16] [#]} ({White should play} 21. Qe1 $11 Bxf1 22. Qg3) 21... Bxf6 $1 $15 {[%emt 0:03:35][%cal Og8h8]} 22. fxe5 {[%emt 0:01:22]} Bxe5 {[%emt 0:00:16] This bishop pair is nice.} 23. Rf2 {[%emt 0:00:24]} Qg5+ {[%emt 0:08:07]} (23... Kh8 $1 $15 {stays ahead.} 24. Kh1 (24. Qh5 Rg8+ 25. Kh1 Bg4 $11) 24... Qh4) 24. Kh1 $16 {[%emt 0:00:38]} Qh4 {[%emt 0:00:12]} 25. Qf3 {[%emt 0:05:39]} Kh8 {[%emt 0:03:04]} 26. Nf6 {[%emt 0:04:47] Prevents Bg4.} (26. Ne3 $16) 26... Rab8 {[%emt 0:11:43]} 27. Nd7 {[%emt 0:08:01]} Rxb5 {[%emt 0:17:39][%mdl 8192] White leaves nothing to chance now.} 28. Nxf8 $18 {[%emt 0:04:46]} Rb8 {[%emt 0:00:06] White must now prevent ...Bc8.} 29. Qxf7 {[%emt 0:02:25]} Bg7 {[%emt 0:07:01]} 30. Re1 {[%emt 0:16:03]} Bf5 {[%emt 0:08:54]} 31. Qxf5 {[%emt 0:02:41][%cal Oe1g1] White wants to mate with Rg1!} Rxf8 {[%emt 0:00:21]} 32. Qxf8+ {[%emt 0:00:20]} Bxf8 {[%emt 0:00:05]} 33. Rxf8+ {[%emt 0:00:04][%mdl 4096] Endgame KQ-KRR} Kg7 {[%emt 0:00:01]} 34. Rfe8 {[%emt 0:01:04] aiming for R8e4.} Qf2 $2 {[%emt 0:02:05]} (34... Qxa4 {was worth a try.} 35. R8e3 Qc4) 35. R8e2 {[%emt 0:01:01]} Qc5 {[%emt 0:01:39]} 36. Ra1 {[%emt 0:03:19]} h5 $2 {[%emt 0:02:24]} (36... Qa5 37. b4 Qa8+ 38. Rg2+ Kh6) 37. a5 {[%emt 0:03:04][%cal Ba4a5,Ba5a6,Ba6a7][%mdl 32]} h4 {[%emt 0:00:19]} 38. a6 {[%emt 0:02:06]} Qd5+ {[%emt 0:00:54]} 39. Kg1 {[%emt 0:00:43] Hoping for a7.} Qc5+ {[%emt 0:02:21]} 40. Rf2 {[%emt 0:01:06] Intending a7 and mate.} h3 {[%emt 0:00:15]} 41. a7 {[%emt 0:01:13]} Qg5+ {[%emt 0:00:11]} 42. Kf1 {[%emt 0:00:37]} Qb5+ {[%emt 0:00:13]} 43. Ke1 {[%emt 0:00:34]} (43. Re2 $142 Qd5 44. a8=Q Qf7+ 45. Ke1 Qg6 46. Ra7+ Kf6 47. Rf2+ Kg5 48. Ra5+ d5 49. Rxd5+ Qf5 50. Rfxf5+ Kh6 51. Qh8+ Kg6 52. Rf6#) 43... Qe5+ {[%emt 0:00:31]} 44. Re2 {[%emt 0:00:17] Weighted Error Value: White=0.45/Black=0.97} 1-0

[Event "16th HSG Open-A 2022"]
[Site "Hilversum"]
[Date "2022.06.17"]
[Round "2.7"]
[White "Van Meegen, Ruud"]
[Black "Jonsson, Gauti Pall"]
[Result "0-1"]
[ECO "A50"]
[WhiteElo "2275"]
[BlackElo "2065"]
[Annotator "TA"]
[PlyCount "132"]
[EventDate "2022.06.17"]
[EventCountry "NED"]
[SourceTitle "playchess.com"]
[Source "ChessBase"]
[SourceQuality "1"]
[TimeControl "6600+10"]

{[%evp 9,132,36,31,32,80,73,69,64,81,87,91,86,89,79,76,74,127,126,119,113,166,149,145,142,145,130,109,159,135,55,41,54,66,-37,-47,-25,0,-34,-34,-42,0,-165,-140,-200,-208,-245,-254,-228,-241,-252,-206,-204,-177,-193,-191,-193,-89,-241,-154,-222,-203,-283,-277,-307,-304,-305,-297,-296,-284,-356,-390,-389,-382,-635,-632,-602,-567,-531,-587,-571,-573,-585,-578,-965,-526,-515,-456,-443,-436,-425,-404,-1832,-1798,-2897,-2727,-1849,-1862,-1433,-1150,-29972,-29973,-29971,-5604,-29974,-29977,-29976,-29977,-29981,-29980,-29982,-29983,-29983,-29984,-29984,-29984,-29984,-29985,-29986,-29987,-29994,-29990,-29994,-29995,-29995,-29996]} 1. d4 {[%emt 0:00:04]} Nf6 {[%emt 0:00:49]} 2. c4 {[%emt 0:00:11]} b6 {[%emt 0:02:05]} 3. Nc3 {[%emt 0:01:14]} Bb7 {[%emt 0:01:32]} 4. f3 {[%emt 0:00:26]} Nc6 {[%emt 0:02:58]} 5. e4 {[%emt 0:05:27]} e5 {[%emt 0:01:31]} 6. d5 {[%emt 0:05:21] A50: Queen's Fianchetto Defence (1 d4 Nf6 2 c4 b6).} Ne7 {[%emt 0:00:55] [#]} (6... Nd4 $14) 7. Bd3 $146 {[%emt 0:01:02]} ({Predecessor:} 7. g3 Ng6 8. Be3 c6 9. d6 Ba6 10. c5 Bxf1 11. Kxf1 bxc5 12. Bxc5 Rg8 13. Nge2 {1-0 (62) Granda Zuniga,J (2648)-Iturrizaga Bonelli,E (2658) Mexico City 2016}) 7... Ng6 {[%emt 0:01:12]} 8. Be3 {[%emt 0:06:04] White is slightly better.} h5 {[%emt 0:03:11]} 9. Qd2 {[%emt 0:04:07]} h4 {[%emt 0:01:51]} 10. Nge2 {[%emt 0:00:50]} Bc5 {[%emt 0:04:47]} 11. Bxc5 {[%emt 0:08:09]} bxc5 {[%emt 0:00:08]} 12. O-O-O Nh5 {[%emt 0:04:09]} (12... d6 $142) 13. g3 $16 {[%emt 0:07:31]} d6 {[%emt 0:01:38]} 14. f4 {[%emt 0:02:24]} Qd7 {[%emt 0:08:18]} (14... Nf6 $16) 15. Bc2 {[%emt 0:04:56]} O-O-O {[%emt 0:02:52]} 16. Ba4 {[%emt 0:01:37]} c6 {[%emt 0:02:30]} 17. dxc6 {[%emt 0:15:45]} Bxc6 {[%emt 0:00:10]} 18. Bxc6 {[%emt 0:00:06]} Qxc6 {[%emt 0:00:08]} 19. Nb5 {[%emt 0:10:24]} ({Better is} 19. f5 $16 Ne7 20. Qg5 (20. gxh4 Nf6 $11)) 19... Kb8 $1 $14 {[%emt 0:02:10]} 20. f5 {[%emt 0:03:37]} ({But not} 20. Nxd6 Nf6 21. Qd3 Ka8 $11) 20... Ne7 {[%emt 0:01:19]} 21. g4 {[%emt 0:01:02]} ({Avoid the trap} 21. Nxd6 $2 Nc8 22. Qd5 Rxd6 $19) (21. Qg5 $14 Nc8 22. Nbc3 (22. Qxh4 Nf6 $17)) 21... Nf6 $1 $15 {[%emt 0:01:27]} 22. Nec3 {[%emt 0:06:55]} Nxe4 {[%emt 0:06:30]} (22... a6 $5 {[%cal Ra6b5]} 23. Nd5 (23. Nxd6 $2 Nc8 $17) 23... Nexd5 24. exd5 Qd7 $11) 23. Qc2 {[%emt 0:04:42]} Nxc3 {[%emt 0:01:28]} 24. Nxc3 {[%emt 0:00:27]} Qf3 {[%emt 0:05:41]} (24... Qa6 $5 {[%cal Ra6c4]} 25. Qb3+ Qb6 $15) 25. Rhg1 $2 {[%emt 0:02:00] [#]} (25. Rhf1 $11 {and White is okay.} Qxg4 26. Qb3+ Ka8 27. Nb5) 25... Qf4+ $19 {[%emt 0:00:20]} 26. Kb1 {[%emt 0:01:03]} (26. Rd2 $17) 26... Qxc4 {[%emt 0:00:32]} 27. Ne4 {[%emt 0:04:03]} Qxc2+ {[%emt 0:01:25]} 28. Kxc2 {[%emt 0:00:05]} Kc7 {[%emt 0:01:36]} 29. Ng5 {[%emt 0:00:30]} Rdf8 {[%emt 0:03:14]} 30. Ne4 {[%emt 0:02:15]} Nc8 {[%emt 0:00:19]} 31. Rd2 {[%emt 0:00:35]} Rd8 {[%emt 0:01:33]} 32. Rgd1 {[%emt 0:00:50]} g6 {[%emt 0:04:58]} (32... h3 $19 {has better winning chances. Threatens to win with ...Rh4.} 33. Ng5 Rdf8) 33. f6 $2 {[%emt 0:00:39]} (33. Rf2 $17 {was worth a try.}) 33... h3 {[%emt 0:02:22]} 34. Rd3 {[%emt 0:02:22]} (34. b4 $17 {was necessary.}) 34... Kc6 {[%emt 0:01:30]} 35. Ng5 {[%emt 0:00:57]} Rd7 {[%emt 0:01:00]} 36. Rxh3 {[%emt 0:00:54]} Rxh3 {[%emt 0:00:23]} 37. Nxh3 {[%emt 0:00:04][%mdl 4096] Endgame KRN-KRN} d5 {[%emt 0:00:17][%cal Bd6d5,Bd5d4][%mdl 32]} 38. Ng5 {[%emt 0:00:14]} Nd6 {[%emt 0:03:20]} 39. Re1 {[%emt 0:02:35]} e4 {[%emt 0:01:20] Prevents Nf3.} 40. h4 {[%emt 0:00:09]} Rd8 {[%emt 0:00:24]} 41. b3 $2 {[%emt 0:00:28]} (41. h5 gxh5 42. gxh5) 41... Rh8 {[%emt 0:01:59]} 42. Rh1 {[%emt 0:00:11]} d4 {[%emt 0:00:18]} 43. h5 {[%emt 0:03:44]} gxh5 {[%emt 0:01:18]} 44. gxh5 {[%emt 0:00:04]} Rh6 {[%emt 0:00:23]} 45. Rh4 {[%emt 0:00:33]} Kd5 {[%emt 0:00:27]} 46. Nh3 {[%emt 0:00:24]} Ke5 {[%emt 0:01:17]} 47. Nf2 {[%emt 0:00:03] [#] Ng4+ is the strong threat.} Kxf6 {[%emt 0:02:18]} 48. Nxe4+ {[%emt 0:00:17]} Nxe4 {[%emt 0:00:20]} 49. Rxe4 {[%emt 0:00:03]} Rxh5 {[%emt 0:00:19] KR-KR} 50. b4 {[%emt 0:00:18]} (50. Re1 $142) 50... Kf5 {[%emt 0:03:41]} 51. Re7 {[%emt 0:00:03]} c4 {[%emt 0:00:10][%cal Bc5c4,Bc4c3][%mdl 32]} 52. Rxf7+ {[%emt 0:00:03]} Ke6 {[%emt 0:00:17]} 53. Rf2 {[%emt 0:00:45] Prevents Rh2.} a5 {[%emt 0:00:27]} 54. bxa5 {[%emt 0:00:09]} Rxa5 {[%emt 0:00:05]} 55. Kb2 {[%emt 0:00:05]} Kd6 {[%emt 0:02:04]} (55... c3+ $142 56. Kb3 Rb5+ 57. Kc4 Rb2 58. Rf1 Rd2 59. Rh1 c2 60. Kb3 d3 61. Re1+ Kd5 62. Rc1 Rd1 63. Rxc2 dxc2 64. Kxc2 Rd4 65. Kb3 Rd2 66. a3 Kd4 67. a4 Rf2 68. Kb4 Rb2+ 69. Ka3 Rb7 70. a5 Kc4 71. a6 Ra7 72. Kb2 Rxa6 73. Kc2 Rd6 74. Kb2 Rd2+ 75. Kc1 Kc3 76. Kb1 Rd1+ 77. Ka2 Re1 78. Ka3 Ra1#) 56. Rf4 {[%emt 0:00:23]} c3+ {[%emt 0:01:23] Black mates.} 57. Kb3 {[%emt 0:00:07]} Rb5+ {[%emt 0:01:36]} 58. Kc2 {[%emt 0:00:06]} Ke5 {[%emt 0:00:16]} 59. Rh4 {[%emt 0:00:06]} Rb2+ {[%emt 0:00:10]} 60. Kc1 {[%emt 0:00:04]} Rxa2 {[%emt 0:00:17]} 61. Rh3 {[%emt 0:00:05]} Kd5 {[%emt 0:00:20]} 62. Kb1 {[%emt 0:00:20]} Rg2 {[%emt 0:00:17]} 63. Rh8 {[%emt 0:00:23]} Kc4 {[%emt 0:00:47]} 64. Rh3 {[%emt 0:00:08]} Rg1+ {[%emt 0:00:18]} 65. Kc2 {[%emt 0:00:17]} d3+ {[%emt 0:00:13]} 66. Rxd3 {[%emt 0:00:04]} Rg2+ {[%emt 0:00:05] Quite a comeback for Black.  Weighted Error Value: White=0.81/Black=0.30} 0-1